[Event "*** Titled Tuesday Blitz"]
[Site "Chess.com"]
[Date "2021.02.09"]
[Round "2"]
[White "Gusarov91"]
[Black "tomsishere"]
[Result "0-1"]
[WhiteElo "2211"]
[BlackElo "2441"]
[TimeControl "180+1"]
[EndTime "10:15:17 PST"]
[Termination "tomsishere won by resignation"]

1. d4 {[%clk 0:03:00.9]} 1... b6 {[%clk 0:03:00.9]} 2. e4 {[%clk 0:02:58.7]}
2... Bb7 {[%clk 0:03:01.8]} 3. Nc3 {[%clk 0:02:59.2]} 3... e6 {[%clk 0:03:01.1]}
4. a3 {[%clk 0:02:59.8]} 4... c5 {[%clk 0:03:00]} 5. d5 {[%clk 0:03:00]} 5...
Nf6 {[%clk 0:02:57.8]} 6. Nf3 {[%clk 0:02:59.6]} 6... exd5 {[%clk 0:02:53]} 7.
exd5 {[%clk 0:02:59.7]} 7... d6 {[%clk 0:02:53.6]} 8. Bb5+ {[%clk 0:02:59.5]}
8... Nbd7 {[%clk 0:02:52.4]} 9. Qe2+ {[%clk 0:02:54.4]} 9... Be7 {[%clk
0:02:52.7]} 10. O-O {[%clk 0:02:49.7]} 10... O-O {[%clk 0:02:53.1]} 11. Rd1
{[%clk 0:02:49.8]} 11... a6 {[%clk 0:02:48.4]} 12. Bd3 {[%clk 0:02:43.1]} 12...
b5 {[%clk 0:02:48.2]} 13. Bf5 {[%clk 0:02:42.9]} 13... g6 {[%clk 0:02:47.3]} 14.
Bh3 {[%clk 0:02:42.7]} 14... Re8 {[%clk 0:02:47.3]} 15. Bf4 {[%clk 0:02:41.5]}
15... Bf8 {[%clk 0:02:46.9]} 16. Qd2 {[%clk 0:02:41.4]} 16... b4 {[%clk
0:02:45.1]} 17. axb4 {[%clk 0:02:41.3]} 17... cxb4 {[%clk 0:02:46]} 18. Na4
{[%clk 0:02:37]} 18... Nxd5 {[%clk 0:02:44.3]} 19. Bg5 {[%clk 0:02:35.9]} 19...
f6 {[%clk 0:02:39.1]} 20. Bh4 {[%clk 0:02:31.7]} 20... Ne5 {[%clk 0:02:35.1]}
21. Nxe5 {[%clk 0:02:26.7]} 21... dxe5 {[%clk 0:02:34.7]} 22. c4 {[%clk
0:02:19.6]} 22... Nf4 {[%clk 0:02:33.6]} 23. Qxd8 {[%clk 0:02:15]} 23... Nxh3+
{[%clk 0:02:30.2]} 24. gxh3 {[%clk 0:02:15.9]} 24... Raxd8 {[%clk 0:02:30.3]}
25. Bxf6 {[%clk 0:02:14.4]} 25... Rxd1+ {[%clk 0:02:18.8]} 26. Rxd1 {[%clk
0:02:15.3]} 26... Bc6 {[%clk 0:02:18.7]} 27. Nb6 {[%clk 0:02:06.4]} 27... Bc5
{[%clk 0:02:14.6]} 28. Nd7 {[%clk 0:02:02.3]} 28... Bd4 {[%clk 0:02:03.9]} 29.
Rxd4 {[%clk 0:01:27.6]} 29... exd4 {[%clk 0:02:02]} 30. Ne5 {[%clk 0:01:28.3]}
30... Re6 {[%clk 0:01:57.6]} 31. Nxc6 {[%clk 0:01:27.1]} 31... Rxc6 {[%clk
0:01:58.1]} 32. Bxd4 {[%clk 0:01:27.2]} 32... Rxc4 {[%clk 0:01:58.4]} 33. Be5
{[%clk 0:01:27]} 33... b3 {[%clk 0:01:58.7]} 34. Kg2 {[%clk 0:01:26.8]} 34... a5
{[%clk 0:01:58.9]} 35. f4 {[%clk 0:01:27]} 35... a4 {[%clk 0:01:59.7]} 36. Kg3
{[%clk 0:01:27.2]} 36... Rc2 {[%clk 0:01:59.8]} 37. Kg4 {[%clk 0:01:25.7]} 37...
a3 {[%clk 0:02:00.2]} 38. bxa3 {[%clk 0:01:25.8]} 38... b2 {[%clk 0:02:01.1]}
39. Bxb2 {[%clk 0:01:26.3]} 39... Rxb2 {[%clk 0:02:01.7]} 0-1

[Event "*** Titled Tuesday Blitz"]
[Site "Chess.com"]
[Date "2021.02.09"]
[Round "2"]
[White "Synctel"]
[Black "NovikovaGalina"]
[Result "0-1"]
[WhiteElo "2000"]
[BlackElo "2368"]
[TimeControl "180+1"]
[EndTime "10:15:17 PST"]
[Termination "NovikovaGalina won by resignation"]

1. e4 {[%clk 0:03:00.9]} 1... e6 {[%clk 0:03:00.3]} 2. d4 {[%clk 0:03:00.1]}
2... d5 {[%clk 0:03:01.2]} 3. Nd2 {[%clk 0:03:00.5]} 3... a6 {[%clk 0:03:00.8]}
4. Ngf3 {[%clk 0:03:00.1]} 4... c5 {[%clk 0:03:00.8]} 5. c3 {[%clk 0:02:52.9]}
5... Nf6 {[%clk 0:02:58.8]} 6. e5 {[%clk 0:02:52.9]} 6... Nfd7 {[%clk
0:02:59.4]} 7. Bd3 {[%clk 0:02:53]} 7... Nc6 {[%clk 0:02:59.2]} 8. O-O {[%clk
0:02:52.8]} 8... Qb6 {[%clk 0:02:59]} 9. dxc5 {[%clk 0:02:48.1]} 9... Bxc5
{[%clk 0:02:59.9]} 10. Qe2 {[%clk 0:02:43.2]} 10... Qc7 {[%clk 0:02:56.9]} 11.
Nb3 {[%clk 0:02:41.3]} 11... Be7 {[%clk 0:02:50.4]} 12. Bf4 {[%clk 0:02:40.2]}
12... h6 {[%clk 0:02:50.5]} 13. Rfe1 {[%clk 0:02:35.2]} 13... g5 {[%clk
0:02:49.4]} 14. Bg3 {[%clk 0:02:35.5]} 14... h5 {[%clk 0:02:44.3]} 15. h3 {[%clk
0:02:24.7]} 15... g4 {[%clk 0:02:40.3]} 16. hxg4 {[%clk 0:02:24.6]} 16... hxg4
{[%clk 0:02:41.1]} 17. Nfd4 {[%clk 0:02:25.3]} 17... Nb6 {[%clk 0:02:30]} 18.
Qxg4 {[%clk 0:02:17.7]} 18... Bd7 {[%clk 0:02:28.6]} 19. f4 {[%clk 0:00:58.8]}
19... O-O-O {[%clk 0:02:27.2]} 20. Kf2 {[%clk 0:00:58.8]} 20... Rdg8 {[%clk
0:02:27.1]} 21. Qf3 {[%clk 0:00:58.1]} 21... Rxg3 {[%clk 0:02:24.5]} 22. Qxg3
{[%clk 0:00:40]} 22... Bh4 {[%clk 0:02:24.2]} 23. Qxh4 {[%clk 0:00:37.7]} 23...
Rxh4 {[%clk 0:02:25.1]} 24. Rh1 {[%clk 0:00:35.8]} 24... Rxf4+ {[%clk
0:02:16.9]} 0-1

[Event "*** Titled Tuesday Blitz"]
[Site "Chess.com"]
[Date "2021.02.09"]
[Round "2"]
[White "IngOscarArdila"]
[Black "PowerThinking2650"]
[Result "0-1"]
[WhiteElo "2149"]
[BlackElo "2405"]
[TimeControl "180+1"]
[EndTime "10:15:29 PST"]
[Termination "PowerThinking2650 won by resignation"]

1. d4 {[%clk 0:03:00.9]} 1... Nf6 {[%clk 0:02:59.9]} 2. c4 {[%clk 0:02:59.2]}
2... g6 {[%clk 0:03:00]} 3. Nc3 {[%clk 0:02:58.4]} 3... Bg7 {[%clk 0:03:00.2]}
4. e4 {[%clk 0:02:56.8]} 4... d6 {[%clk 0:03:00.7]} 5. Nf3 {[%clk 0:02:56.8]}
5... O-O {[%clk 0:03:01.3]} 6. Be2 {[%clk 0:02:57.3]} 6... e5 {[%clk 0:03:01.9]}
7. O-O {[%clk 0:02:53.9]} 7... Nc6 {[%clk 0:03:01.9]} 8. d5 {[%clk 0:02:54.1]}
8... Ne7 {[%clk 0:03:00.5]} 9. Bg5 {[%clk 0:02:54.7]} 9... h6 {[%clk 0:03:00.2]}
10. Bxf6 {[%clk 0:02:55]} 10... Bxf6 {[%clk 0:03:01.1]} 11. b4 {[%clk
0:02:54.6]} 11... Bg7 {[%clk 0:03:01.2]} 12. c5 {[%clk 0:02:53.8]} 12... f5
{[%clk 0:03:01.5]} 13. Qc2 {[%clk 0:02:53.3]} 13... fxe4 {[%clk 0:03:01.5]} 14.
Nxe4 {[%clk 0:02:50.4]} 14... Bg4 {[%clk 0:02:58.5]} 15. h3 {[%clk 0:02:37.2]}
15... Bxf3 {[%clk 0:02:58]} 16. Bxf3 {[%clk 0:02:37.4]} 16... Rxf3 {[%clk
0:02:56.4]} 17. gxf3 {[%clk 0:02:36]} 17... Qd7 {[%clk 0:02:55.7]} 18. Kg2
{[%clk 0:02:30.5]} 18... Nf5 {[%clk 0:02:55.2]} 19. Nd2 {[%clk 0:01:53.9]} 19...
Rf8 {[%clk 0:02:46.7]} 20. Qe4 {[%clk 0:01:50.3]} 20... g5 {[%clk 0:02:40.7]}
21. c6 {[%clk 0:01:40.6]} 21... bxc6 {[%clk 0:02:38.4]} 22. dxc6 {[%clk
0:01:40.9]} 22... Qe6 {[%clk 0:02:31.1]} 23. Qc4 {[%clk 0:01:17.6]} 23... d5
{[%clk 0:02:30.5]} 24. Qg4 {[%clk 0:01:16.2]} 24... Qg6 {[%clk 0:02:23.3]} 25.
Rfe1 {[%clk 0:01:04.8]} 25... h5 {[%clk 0:02:22.8]} 0-1

[Event "*** Titled Tuesday Blitz"]
[Site "Chess.com"]
[Date "2021.02.09"]
[Round "2"]
[White "KuzubovYuriy"]
[Black "Kretov_Evgenij"]
[Result "1-0"]
[WhiteElo "2822"]
[BlackElo "2507"]
[TimeControl "180+1"]
[EndTime "10:15:30 PST"]
[Termination "KuzubovYuriy won by resignation"]

1. d4 {[%clk 0:03:00.9]} 1... Nf6 {[%clk 0:02:59.7]} 2. Nf3 {[%clk 0:03:00.7]}
2... e6 {[%clk 0:02:56.3]} 3. c4 {[%clk 0:03:00.4]} 3... b6 {[%clk 0:02:53.7]}
4. g3 {[%clk 0:03:00.5]} 4... Ba6 {[%clk 0:02:53.5]} 5. Qc2 {[%clk 0:03:00.8]}
5... Bb4+ {[%clk 0:02:52.6]} 6. Bd2 {[%clk 0:03:00.8]} 6... Be7 {[%clk
0:02:52.7]} 7. e4 {[%clk 0:03:00.9]} 7... d5 {[%clk 0:02:47.9]} 8. cxd5 {[%clk
0:03:01.8]} 8... Bxf1 {[%clk 0:02:47.4]} 9. Kxf1 {[%clk 0:03:02.7]} 9... exd5
{[%clk 0:02:46.9]} 10. e5 {[%clk 0:03:03.2]} 10... Ne4 {[%clk 0:02:46.9]} 11.
Nc3 {[%clk 0:03:03.8]} 11... Nxc3 {[%clk 0:02:39.1]} 12. bxc3 {[%clk 0:03:03.8]}
12... c5 {[%clk 0:02:34.1]} 13. dxc5 {[%clk 0:02:57.4]} 13... bxc5 {[%clk
0:02:32.9]} 14. Kg2 {[%clk 0:02:52.1]} 14... Nd7 {[%clk 0:02:32.9]} 15. h4
{[%clk 0:02:47.3]} 15... Nb6 {[%clk 0:02:31.2]} 16. Rae1 {[%clk 0:02:41.3]}
16... O-O {[%clk 0:02:14]} 17. Ng5 {[%clk 0:02:41]} 17... g6 {[%clk 0:02:13.5]}
18. e6 {[%clk 0:02:29.6]} 18... f5 {[%clk 0:02:01.7]} 19. Nf7 {[%clk 0:02:27]}
19... Qc7 {[%clk 0:01:52.7]} 20. h5 {[%clk 0:02:27.3]} 20... Bf6 {[%clk
0:01:24.1]} 21. hxg6 {[%clk 0:02:25.6]} 21... hxg6 {[%clk 0:01:24.3]} 22. Nh6+
{[%clk 0:01:57.4]} 22... Kg7 {[%clk 0:01:21.3]} 23. Nxf5+ {[%clk 0:01:57.4]}
23... gxf5 {[%clk 0:01:18.1]} 24. Qxf5 {[%clk 0:01:58.3]} 24... Rh8 {[%clk
0:01:17.9]} 25. Qg4+ {[%clk 0:01:46.9]} 25... Kf8 {[%clk 0:01:16.1]} 26. Rxh8+
{[%clk 0:01:46.6]} 26... Bxh8 {[%clk 0:01:16]} 27. e7+ {[%clk 0:01:47.2]} 27...
Ke8 {[%clk 0:01:06.3]} 28. Qg6+ {[%clk 0:01:44.9]} 28... Kd7 {[%clk 0:01:05]}
29. e8=Q+ {[%clk 0:01:45.4]} 1-0

[Event "*** Titled Tuesday Blitz"]
[Site "Chess.com"]
[Date "2021.02.09"]
[Round "2"]
[White "jorquerino"]
[Black "johnathan113"]
[Result "0-1"]
[WhiteElo "2276"]
[BlackElo "2615"]
[TimeControl "180+1"]
[EndTime "10:15:31 PST"]
[Termination "johnathan113 won by resignation"]

1. e4 {[%clk 0:03:00.9]} 1... c6 {[%clk 0:03:00.4]} 2. d4 {[%clk 0:02:57.7]}
2... d5 {[%clk 0:03:00.9]} 3. exd5 {[%clk 0:02:57.8]} 3... cxd5 {[%clk
0:03:01.8]} 4. Bd3 {[%clk 0:02:57.8]} 4... g6 {[%clk 0:03:01]} 5. h3 {[%clk
0:02:55]} 5... Nc6 {[%clk 0:03:01.1]} 6. c3 {[%clk 0:02:54.8]} 6... Bg7 {[%clk
0:03:00.6]} 7. Nf3 {[%clk 0:02:54.5]} 7... Nh6 {[%clk 0:03:00.4]} 8. O-O {[%clk
0:02:48.3]} 8... Bf5 {[%clk 0:03:00.9]} 9. Re1 {[%clk 0:02:46.5]} 9... Bxd3
{[%clk 0:02:53.3]} 10. Qxd3 {[%clk 0:02:44.2]} 10... Nf5 {[%clk 0:02:54.2]} 11.
Bf4 {[%clk 0:02:39.2]} 11... Qb6 {[%clk 0:02:52.2]} 12. Qd2 {[%clk 0:02:31.5]}
12... O-O {[%clk 0:02:50.9]} 13. g4 {[%clk 0:02:00.5]} 13... Nd6 {[%clk
0:02:50.2]} 14. Qc1 {[%clk 0:01:33.1]} 14... Rac8 {[%clk 0:02:41.3]} 15. Nbd2
{[%clk 0:01:26]} 15... Nxd4 {[%clk 0:02:39.6]} 16. Nxd4 {[%clk 0:01:15.6]} 16...
Bxd4 {[%clk 0:02:38.9]} 17. Bg3 {[%clk 0:01:13.1]} 17... f5 {[%clk 0:02:35.7]}
18. Nf3 {[%clk 0:01:03.9]} 18... Bc5 {[%clk 0:02:24]} 19. Nd4 {[%clk 0:00:56.5]}
19... Ne4 {[%clk 0:02:20.7]} 20. Qd1 {[%clk 0:00:29.2]} 20... f4 {[%clk
0:02:15.2]} 21. Bh4 {[%clk 0:00:23.7]} 21... e5 {[%clk 0:02:15.1]} 0-1

[Event "*** Titled Tuesday Blitz"]
[Site "Chess.com"]
[Date "2021.02.09"]
[Round "2"]
[White "Ajedrez_con_German"]
[Black "ChessAdvanceUSA"]
[Result "1/2-1/2"]
[WhiteElo "2607"]
[BlackElo "2289"]
[TimeControl "180+1"]
[EndTime "10:15:34 PST"]
[Termination "Game drawn by agreement"]

1. c4 {[%clk 0:03:00.9]} 1... Nf6 {[%clk 0:02:58.9]} 2. g3 {[%clk 0:03:00.8]}
2... g6 {[%clk 0:02:57.4]} 3. Bg2 {[%clk 0:03:00.6]} 3... Bg7 {[%clk 0:02:58.1]}
4. Nc3 {[%clk 0:03:00.6]} 4... O-O {[%clk 0:02:58.7]} 5. e4 {[%clk 0:03:00.6]}
5... d6 {[%clk 0:02:56.3]} 6. Nge2 {[%clk 0:03:00]} 6... c5 {[%clk 0:02:56.4]}
7. O-O {[%clk 0:02:59.4]} 7... Nc6 {[%clk 0:02:56.7]} 8. d3 {[%clk 0:02:58.9]}
8... Rb8 {[%clk 0:02:55.7]} 9. h3 {[%clk 0:02:51.5]} 9... a6 {[%clk 0:02:55.3]}
10. f4 {[%clk 0:02:46.8]} 10... Nd7 {[%clk 0:02:53.6]} 11. a4 {[%clk 0:02:39.8]}
11... Nd4 {[%clk 0:02:50.8]} 12. Nxd4 {[%clk 0:02:34.5]} 12... cxd4 {[%clk
0:02:42.9]} 13. Ne2 {[%clk 0:02:33.7]} 13... a5 {[%clk 0:02:41.6]} 14. g4 {[%clk
0:02:24.6]} 14... Nc5 {[%clk 0:02:41]} 15. Qc2 {[%clk 0:02:01.3]} 15... e6
{[%clk 0:02:40.5]} 16. f5 {[%clk 0:01:58.5]} 16... Be5 {[%clk 0:02:39.3]} 17.
Bf4 {[%clk 0:01:54.6]} 17... Bxf4 {[%clk 0:02:38.7]} 18. Nxf4 {[%clk 0:01:53.8]}
18... Qg5 {[%clk 0:02:38.3]} 19. Rf2 {[%clk 0:01:39.8]} 19... b6 {[%clk
0:02:34.1]} 20. Raf1 {[%clk 0:01:37.7]} 20... Bb7 {[%clk 0:02:30.2]} 21. Ne2
{[%clk 0:01:33.3]} 21... e5 {[%clk 0:02:26.3]} 22. Ng3 {[%clk 0:01:22.8]} 22...
Qe3 {[%clk 0:02:24]} 1/2-1/2

[Event "*** Titled Tuesday Blitz"]
[Site "Chess.com"]
[Date "2021.02.09"]
[Round "2"]
[White "Mikhail_Golubev"]
[Black "LiamVrolijk"]
[Result "0-1"]
[WhiteElo "2530"]
[BlackElo "2878"]
[TimeControl "180+1"]
[EndTime "10:16:01 PST"]
[Termination "LiamVrolijk won on time"]

1. e4 {[%clk 0:03:00.9]} 1... e5 {[%clk 0:02:56.6]} 2. Nf3 {[%clk 0:03:00.4]}
2... Nc6 {[%clk 0:02:57]} 3. Bb5 {[%clk 0:02:59.7]} 3... a6 {[%clk 0:02:55.3]}
4. Ba4 {[%clk 0:02:57.3]} 4... Nf6 {[%clk 0:02:55.4]} 5. O-O {[%clk 0:02:57.7]}
5... b5 {[%clk 0:02:55.7]} 6. Bb3 {[%clk 0:02:55.8]} 6... Bc5 {[%clk 0:02:56]}
7. c3 {[%clk 0:02:51.4]} 7... d6 {[%clk 0:02:56.1]} 8. d4 {[%clk 0:02:51.4]}
8... Bb6 {[%clk 0:02:56.5]} 9. a4 {[%clk 0:02:47.3]} 9... Rb8 {[%clk 0:02:56.3]}
10. a5 {[%clk 0:02:38.8]} 10... Ba7 {[%clk 0:02:55.5]} 11. h3 {[%clk 0:02:21.7]}
11... Bb7 {[%clk 0:02:54]} 12. Re1 {[%clk 0:01:53.6]} 12... O-O {[%clk
0:02:47.3]} 13. Be3 {[%clk 0:01:30.8]} 13... exd4 {[%clk 0:02:41.7]} 14. cxd4
{[%clk 0:01:29.4]} 14... Nb4 {[%clk 0:02:30.4]} 15. Nc3 {[%clk 0:00:54.9]} 15...
Bxe4 {[%clk 0:02:29.8]} 16. Nxe4 {[%clk 0:00:41.8]} 16... Nxe4 {[%clk
0:02:30.7]} 17. d5 {[%clk 0:00:27]} 17... Bxe3 {[%clk 0:02:15.6]} 18. Rxe3
{[%clk 0:00:26.2]} 18... Nf6 {[%clk 0:02:14.1]} 19. Rc1 {[%clk 0:00:19.9]} 19...
Rc8 {[%clk 0:02:10.7]} 20. Qd4 {[%clk 0:00:16.2]} 20... c5 {[%clk 0:02:09.4]}
21. dxc6 {[%clk 0:00:16.6]} 21... Nxc6 {[%clk 0:02:08.4]} 22. Qb6 {[%clk
0:00:13.1]} 22... Nxa5 {[%clk 0:02:07.3]} 23. Rxc8 {[%clk 0:00:04.6]} 23... Qxb6
{[%clk 0:02:04.3]} 0-1

[Event "*** Titled Tuesday Blitz"]
[Site "Chess.com"]
[Date "2021.02.09"]
[Round "2"]
[White "Firouzja2003"]
[Black "Iskusnyh"]
[Result "1-0"]
[WhiteElo "3024"]
[BlackElo "2582"]
[TimeControl "180+1"]
[EndTime "10:16:02 PST"]
[Termination "Firouzja2003 won on time"]

1. d4 {[%clk 0:03:00.9]} 1... d5 {[%clk 0:02:58.6]} 2. Nd2 {[%clk 0:03:00.9]}
2... Nf6 {[%clk 0:02:52.8]} 3. c4 {[%clk 0:02:55.2]} 3... c6 {[%clk 0:02:44.2]}
4. Ngf3 {[%clk 0:02:54.9]} 4... Bf5 {[%clk 0:02:43.2]} 5. Nh4 {[%clk 0:02:53.5]}
5... Be6 {[%clk 0:02:39.8]} 6. e3 {[%clk 0:02:52.7]} 6... g6 {[%clk 0:02:37.9]}
7. Be2 {[%clk 0:02:51.7]} 7... Bg7 {[%clk 0:02:37.6]} 8. O-O {[%clk 0:02:52.4]}
8... O-O {[%clk 0:02:37.5]} 9. Nhf3 {[%clk 0:02:53.3]} 9... c5 {[%clk
0:02:25.2]} 10. cxd5 {[%clk 0:02:51]} 10... Bxd5 {[%clk 0:02:17.6]} 11. dxc5
{[%clk 0:02:50.9]} 11... Na6 {[%clk 0:02:08.8]} 12. Nb3 {[%clk 0:02:49.7]} 12...
Bxb3 {[%clk 0:02:02.5]} 13. Qxb3 {[%clk 0:02:48.7]} 13... Nxc5 {[%clk
0:02:01.7]} 14. Qa3 {[%clk 0:02:48]} 14... Qb6 {[%clk 0:01:55]} 15. Bd2 {[%clk
0:02:47.5]} 15... Nfe4 {[%clk 0:01:50.9]} 16. b4 {[%clk 0:02:36.1]} 16... Ne6
{[%clk 0:01:31.4]} 17. Rac1 {[%clk 0:02:33.4]} 17... Rfd8 {[%clk 0:01:19.7]} 18.
Rfd1 {[%clk 0:02:33]} 18... Nxd2 {[%clk 0:01:15.7]} 19. Nxd2 {[%clk 0:02:33.9]}
19... a5 {[%clk 0:01:04.7]} 20. b5 {[%clk 0:02:31.1]} 20... Qd6 {[%clk
0:00:41.4]} 21. Qxd6 {[%clk 0:02:28.5]} 21... Rxd6 {[%clk 0:00:41]} 22. Nc4
{[%clk 0:02:29.4]} 22... Rxd1+ {[%clk 0:00:40]} 23. Rxd1 {[%clk 0:02:29.6]}
23... Nc5 {[%clk 0:00:38.7]} 24. Rd5 {[%clk 0:02:26.5]} 24... Na4 {[%clk
0:00:33.9]} 25. Rd7 {[%clk 0:02:25.9]} 25... Nc5 {[%clk 0:00:27.7]} 26. Rc7
{[%clk 0:02:25]} 26... Ne4 {[%clk 0:00:23]} 27. Bf3 {[%clk 0:02:20.8]} 27... Nc3
{[%clk 0:00:12.6]} 28. b6 {[%clk 0:02:21]} 28... Nxa2 {[%clk 0:00:10.2]} 29.
Rxb7 {[%clk 0:02:21.6]} 29... Rc8 {[%clk 0:00:09.6]} 30. Rc7 {[%clk 0:02:20.1]}
30... Rd8 {[%clk 0:00:05]} 31. b7 {[%clk 0:02:19.5]} 1-0

[Event "*** Titled Tuesday Blitz"]
[Site "Chess.com"]
[Date "2021.02.09"]
[Round "2"]
[White "swisspower96"]
[Black "pavelalexandru07"]
[Result "1-0"]
[WhiteElo "2665"]
[BlackElo "2324"]
[TimeControl "180+1"]
[EndTime "10:16:02 PST"]
[Termination "swisspower96 won by resignation"]

1. d4 {[%clk 0:03:00.9]} 1... Nf6 {[%clk 0:02:57.7]} 2. c4 {[%clk 0:02:59.2]}
2... c5 {[%clk 0:02:57.4]} 3. d5 {[%clk 0:02:56.4]} 3... e6 {[%clk 0:02:52.7]}
4. Nc3 {[%clk 0:02:56.1]} 4... exd5 {[%clk 0:02:53.2]} 5. cxd5 {[%clk 0:02:57]}
5... d6 {[%clk 0:02:53.9]} 6. Nf3 {[%clk 0:02:55.5]} 6... g6 {[%clk 0:02:53.2]}
7. Bf4 {[%clk 0:02:55.7]} 7... Bg7 {[%clk 0:02:52.4]} 8. Qa4+ {[%clk 0:02:54.4]}
8... Bd7 {[%clk 0:02:52.7]} 9. Qb3 {[%clk 0:02:55.1]} 9... b5 {[%clk 0:02:51.4]}
10. Bxd6 {[%clk 0:02:50.6]} 10... Qb6 {[%clk 0:02:51]} 11. Be5 {[%clk
0:02:49.8]} 11... O-O {[%clk 0:02:45.6]} 12. e3 {[%clk 0:02:41.5]} 12... c4
{[%clk 0:02:40.3]} 13. Qd1 {[%clk 0:02:41.5]} 13... b4 {[%clk 0:02:40.1]} 14.
Ne2 {[%clk 0:02:41.5]} 14... Rc8 {[%clk 0:01:33]} 15. Nf4 {[%clk 0:02:08.1]}
15... a5 {[%clk 0:00:57.2]} 16. Be2 {[%clk 0:02:05.1]} 16... Na6 {[%clk
0:00:55.9]} 17. O-O {[%clk 0:02:04]} 17... Bb5 {[%clk 0:00:44.8]} 18. Rc1 {[%clk
0:02:01.1]} 18... Nd7 {[%clk 0:00:18.3]} 19. Bxg7 {[%clk 0:02:00.3]} 19... Kxg7
{[%clk 0:00:18.5]} 20. Qd4+ {[%clk 0:01:59.5]} 20... Qxd4 {[%clk 0:00:18.7]} 21.
Nxd4 {[%clk 0:02:00.4]} 21... Rab8 {[%clk 0:00:18.5]} 22. Nxb5 {[%clk
0:02:00.6]} 22... Rxb5 {[%clk 0:00:19.4]} 23. Bxc4 {[%clk 0:02:00.8]} 23... Rb6
{[%clk 0:00:20]} 24. Bxa6 {[%clk 0:01:55.5]} 24... Rxc1 {[%clk 0:00:20.9]} 25.
Rxc1 {[%clk 0:01:55.5]} 25... Rxa6 {[%clk 0:00:21.8]} 26. Nd3 {[%clk 0:01:54.2]}
26... Rd6 {[%clk 0:00:21.4]} 27. e4 {[%clk 0:01:54.2]} 27... Nf6 {[%clk
0:00:21.9]} 28. e5 {[%clk 0:01:52.2]} 1-0

[Event "*** Titled Tuesday Blitz"]
[Site "Chess.com"]
[Date "2021.02.09"]
[Round "2"]
[White "PrinceMurad09"]
[Black "kuban1991"]
[Result "0-1"]
[WhiteElo "2544"]
[BlackElo "2896"]
[TimeControl "180+1"]
[EndTime "10:16:03 PST"]
[Termination "kuban1991 won by resignation"]

1. e4 {[%clk 0:03:00.9]} 1... e6 {[%clk 0:02:56.4]} 2. d4 {[%clk 0:02:59.7]}
2... d5 {[%clk 0:02:56.9]} 3. Nd2 {[%clk 0:02:59.7]} 3... c5 {[%clk 0:02:56.7]}
4. exd5 {[%clk 0:02:59.7]} 4... exd5 {[%clk 0:02:57.6]} 5. Ngf3 {[%clk 0:02:58]}
5... Nc6 {[%clk 0:02:58.1]} 6. dxc5 {[%clk 0:02:58.2]} 6... Bxc5 {[%clk
0:02:58.6]} 7. Nb3 {[%clk 0:02:58.8]} 7... Bb6 {[%clk 0:02:58.8]} 8. Bd3 {[%clk
0:02:59.1]} 8... Nf6 {[%clk 0:02:59.2]} 9. h3 {[%clk 0:02:59.3]} 9... O-O {[%clk
0:02:59.6]} 10. O-O {[%clk 0:02:59.5]} 10... Be6 {[%clk 0:02:56.1]} 11. Bg5
{[%clk 0:02:52.8]} 11... h6 {[%clk 0:02:56.3]} 12. Bh4 {[%clk 0:02:53.1]} 12...
g5 {[%clk 0:02:56.4]} 13. Bg3 {[%clk 0:02:42]} 13... Ne4 {[%clk 0:02:56]} 14.
Bh2 {[%clk 0:02:38.6]} 14... f5 {[%clk 0:02:52.6]} 15. c3 {[%clk 0:02:34.5]}
15... Qf6 {[%clk 0:02:46.5]} 16. Nfd4 {[%clk 0:02:25.6]} 16... Nxd4 {[%clk
0:02:38.4]} 17. Nxd4 {[%clk 0:02:25.1]} 17... Bxd4 {[%clk 0:02:37.7]} 18. cxd4
{[%clk 0:02:25.2]} 18... Qxd4 {[%clk 0:02:36.1]} 19. Bxe4 {[%clk 0:02:19]} 19...
Qxd1 {[%clk 0:02:34.9]} 20. Rfxd1 {[%clk 0:02:15.6]} 20... dxe4 {[%clk 0:02:28]}
21. Be5 {[%clk 0:02:10.1]} 21... Kf7 {[%clk 0:02:25.5]} 22. a3 {[%clk 0:01:50]}
22... Rfd8 {[%clk 0:02:18.6]} 23. Rxd8 {[%clk 0:01:36.6]} 23... Rxd8 {[%clk
0:02:19.5]} 24. Rc1 {[%clk 0:01:36.9]} 24... Bd5 {[%clk 0:02:07.6]} 25. Rc7+
{[%clk 0:01:31]} 25... Ke6 {[%clk 0:02:07.5]} 26. Bg7 {[%clk 0:01:21.8]} 26...
Bc6 {[%clk 0:01:56.4]} 27. Bxh6 {[%clk 0:01:06.5]} 27... Rd1+ {[%clk 0:01:56.5]}
28. Kh2 {[%clk 0:01:06.5]} 28... e3 {[%clk 0:01:48.5]} 29. fxe3 {[%clk 0:00:50]}
29... Rd2 {[%clk 0:01:48.6]} 30. Kh1 {[%clk 0:00:48.1]} 30... Bxg2+ {[%clk
0:01:45.3]} 31. Kg1 {[%clk 0:00:47.5]} 31... Be4 {[%clk 0:01:45.8]} 32. Bxg5
{[%clk 0:00:43.7]} 32... Rg2+ {[%clk 0:01:45.6]} 0-1

[Event "*** Titled Tuesday Blitz"]
[Site "Chess.com"]
[Date "2021.02.09"]
[Round "2"]
[White "DanielDardha2005"]
[Black "Ave_Mariia"]
[Result "1-0"]
[WhiteElo "2718"]
[BlackElo "2478"]
[TimeControl "180+1"]
[EndTime "10:16:10 PST"]
[Termination "DanielDardha2005 won by resignation"]

1. b3 {[%clk 0:02:57.4]} 1... Nf6 {[%clk 0:02:59]} 2. Bb2 {[%clk 0:02:56.7]}
2... e6 {[%clk 0:02:59]} 3. f4 {[%clk 0:02:56.6]} 3... d5 {[%clk 0:02:58.8]} 4.
Nf3 {[%clk 0:02:56.9]} 4... c5 {[%clk 0:02:58.6]} 5. e3 {[%clk 0:02:57.2]} 5...
Nc6 {[%clk 0:02:58.6]} 6. Bb5 {[%clk 0:02:57.7]} 6... Bd7 {[%clk 0:02:47.1]} 7.
O-O {[%clk 0:02:57.1]} 7... Bd6 {[%clk 0:02:45.9]} 8. d3 {[%clk 0:02:56.1]} 8...
O-O {[%clk 0:02:45.3]} 9. Nbd2 {[%clk 0:02:54.1]} 9... a6 {[%clk 0:02:36.7]} 10.
Bxc6 {[%clk 0:02:53.9]} 10... Bxc6 {[%clk 0:02:37.6]} 11. Ne5 {[%clk 0:02:54]}
11... Qc7 {[%clk 0:02:21.3]} 12. Rf3 {[%clk 0:02:51.6]} 12... Nd7 {[%clk
0:02:01.3]} 13. Nxc6 {[%clk 0:02:43.5]} 13... Qxc6 {[%clk 0:01:58.8]} 14. e4
{[%clk 0:02:42.9]} 14... Be7 {[%clk 0:01:43.4]} 15. Qe2 {[%clk 0:02:35.1]} 15...
dxe4 {[%clk 0:01:38.3]} 16. Nxe4 {[%clk 0:02:26.4]} 16... Rfe8 {[%clk
0:01:25.2]} 17. Rg3 {[%clk 0:02:23.1]} 17... f6 {[%clk 0:01:20.9]} 18. Re1
{[%clk 0:02:18.5]} 18... Kh8 {[%clk 0:01:08.6]} 19. Qh5 {[%clk 0:02:13.9]} 19...
Qd5 {[%clk 0:00:57.5]} 20. Qf7 {[%clk 0:02:04.2]} 20... Bf8 {[%clk 0:00:21.5]}
21. Nxf6 {[%clk 0:02:03.4]} 21... Nxf6 {[%clk 0:00:21.3]} 22. Bxf6 {[%clk
0:02:03.7]} 22... Re7 {[%clk 0:00:12.8]} 23. Bxe7 {[%clk 0:01:56.3]} 23... Qd4+
{[%clk 0:00:13.2]} 24. Kh1 {[%clk 0:01:55.9]} 24... Qf2 {[%clk 0:00:12.4]} 25.
Rg1 {[%clk 0:01:53.6]} 1-0